bitfinex-derivatives/quotes_SOLF0:USTF0_20250127
["timestamp","ask_amount","ask_price","bid_price","bid_amount"]
[1738018017471,4.2561,235.01,235.0,0.02997366]
[1738018026280,6.33247564,235.06,235.0,0.02997366]
[1738018026479,4.2559,235.03,235.0,0.02997366]
[1738018027979,4.256,235.02,235.0,0.02997366]
[1738018028881,4.2561,235.01,235.0,0.02997366]
[1738018029378,4.256,235.03,235.0,0.02997366]
[1738018030885,4.2552,235.06,235.02,4.2559]
[1738018031183,1.3655,235.09,235.0,0.02997366]
[1738018031377,4.2553,235.06,235.01,4.256]
[1738018031578,1.3655,235.09,235.01,4.256]
[1738018031781,1.3655,235.09,235.0,0.02997366]
[1738018032085,4.2553,235.06,235.03,4.2558]
[1738018032283,1.3655,235.09,235.03,4.2558]
[1738018033085,4.2551,235.07,235.03,4.2558]
[1738018034587,4.2556,235.04,235.02,6.33247564]
[1738018036487,1.3655,235.09,235.03,4.2558]
[1738018036488,4.2551,235.07,235.03,4.2558]
[1738018040589,4.2551,235.07,235.04,4.2556]
[1738018041190,1.3655,235.09,235.02,6.33247564]
[1738018041393,4.2549,235.08,235.05,4.2554]
[1738018042692,5.6202,235.09,235.05,4.2554]
[1738018042887,5.6202,235.09,235.05,10.58787564]
[1738018045594,4.2547,235.09,235.06,4.2552]
[1738018048190,4.2545,235.11,235.06,4.2552]
[1738018048495,4.2545,235.11,235.07,4.2551]
[1738018049191,4.2545,235.11,235.07,10.58757564]
[1738018050297,4.2545,235.11,235.09,6.33247564]
[1738018051497,4.2545,235.11,235.07,6.33247564]
[1738018051998,4.2545,235.11,235.09,6.33247564]
[1738018052196,4.2542,235.12,235.09,6.33247564]
[1738018052697,6.33247564,235.18,235.09,6.33247564]
[1738018052899,4.2537,235.15,235.1,4.2544]
[1738018053097,4.2537,235.15,235.09,6.33247564]
[1738018054099,4.2537,235.15,235.11,4.2543]
[1738018055601,4.2537,235.15,235.11,10.58677564]
[1738018060804,4.2533,235.18,235.13,4.2539]
[1738018060997,6.33247564,235.21,235.13,4.2539]
[1738018061198,6.33247564,235.21,235.13,4.28248255]
[1738018061901,6.33247564,235.21,235.14,4.2537]
[1738018062298,4.2529,235.19,235.13,6.36105819]
[1738018062498,10.55937564,235.25,235.16,6.33247564]
[1738018062700,4.2269,235.25,235.18,6.33247564]
[1738018062902,4.2269,235.25,235.18,6.36486366]
[1738018063297,4.2269,235.25,235.2,6.33247564]
[1738018063700,6.33247564,235.31,235.22,6.33247564]
[1738018064099,6.33247564,235.31,235.24,0.03189367]
[1738018064401,4.2513,235.29,235.24,6.36436931]
[1738018064701,4.25,235.35,235.29,4.251]
[1738018064901,4.25,235.35,235.31,6.33247564]
[1738018065402,53.41345019,235.38,235.3,0.03255596]
[1738018065601,47.08097455,235.38,235.31,6.33247564]
[1738018066105,1.372,235.39,235.31,6.33247564]
[1738018067002,6.33247564,235.38,235.3,0.03255596]
[1738018067904,1.372,235.39,235.3,0.03255596]
[1738018068406,1.372,235.39,235.31,6.33247564]
[1738018068706,6.33247564,235.43,235.31,6.33247564]
[1738018069400,6.33247564,235.43,235.33,4.2502]
[1738018069603,6.33247564,235.43,235.31,6.33247564]
[1738018069799,6.33247564,235.4,235.36,0.03106012]
[1738018070004,6.33247564,235.37,235.28,6.33247564]
[1738018070197,0.03115671,235.4,235.35,6.33247564]
[1738018070402,9.96593726,235.46,235.35,6.33247564]
[1738018070602,9.96593726,235.46,235.39,4.2493]
[1738018070802,9.96593726,235.46,235.35,6.33247564]
[1738018071102,0.03196729,235.43,235.41,4.2488]
[1738018071307,0.03196729,235.43,235.41,6.33247564]
[1738018071708,0.03196729,235.43,235.42,4.2487]
[1738018073212,6.33247564,235.55,235.5,4.2472]
[1738018073410,6.33247564,235.58,235.48,6.33247564]
[1738018073917,6.33247564,235.58,235.53,4.2467]
[1738018074319,6.33247564,235.61,235.53,4.27729818]
[1738018074513,6.33247564,235.67,235.57,6.33247564]
[1738018074917,6.33247564,235.67,235.6,0.02782831]
[1738018075510,6.33247564,235.73,235.63,6.33247564]
[1738018075715,6.33247564,235.77,235.69,6.33247564]
[1738018075915,6.33247564,235.77,235.7,10.79474116]
[1738018076216,13.87239023,235.8,235.71,10.79474116]
[1738018076414,13.87239023,235.8,235.72,10.79474116]
[1738018076622,13.87239023,235.8,235.71,0.02868651]
[1738018076623,13.87239023,235.8,235.76,5.13747251]
[1738018077218,6.33247564,235.77,235.71,0.02868651]
[1738018077419,6.33247564,235.77,235.72,4.13320684]
[1738018077620,6.33247564,235.77,235.71,0.02868651]
[1738018077817,6.33247564,235.77,235.73,18.11984695]
[1738018078324,6.33247564,235.77,235.74,10.24165262]
[1738018078624,4.2428,235.75,235.74,10.24165262]
[1738018078925,6.7334935,235.77,235.74,10.24165262]
[1738018079418,4.2427,235.76,235.74,10.24165262]
[1738018080019,4.2427,235.76,235.75,3.93909716]
[1738018080719,10.37053065,235.77,235.5,10.37053065]
[1738018080922,10.37053065,235.68,235.54,4.11904482]
[1738018081223,1.4234,235.67,235.52,9.2769741]
[1738018081416,4.2459,235.58,235.53,4.04420242]
[1738018081624,10.37053065,235.64,235.52,9.2769741]
[1738018081926,0.02776462,235.58,235.54,5.98552211]
[1738018082119,4.2464,235.56,235.54,5.98552211]
[1738018082524,4.2464,235.56,235.55,5.98552211]
[1738018082921,4.2466,235.54,235.53,0.02928611]
[1738018083521,0.02776462,235.58,235.46,4.0458307]
[1738018083522,4.2473,235.5,235.46,4.0458307]
[1738018083720,0.02776462,235.58,235.39,1.4422]
[1738018083721,10.37053065,235.59,235.39,1.4422]
[1738018083924,10.37053065,235.59,235.4,4.04712826]
[1738018084226,10.37053065,235.59,235.41,4.04712826]
[1738018084418,10.37053065,235.59,235.42,4.04712826]
[1738018084624,0.0307713,235.52,235.48,0.02797783]
[1738018085226,4.2472,235.51,235.48,0.02797783]
[1738018085421,0.0307713,235.52,235.48,0.02797783]
[1738018086421,4.2474,235.5,235.48,0.02797783]
[1738018088824,0.0307713,235.52,235.48,0.02797783]
[1738018089021,2.9078,235.64,235.5,10.37053065]
[1738018089220,8.49,235.63,235.39,1.4422]
[1738018089419,8.49,235.63,235.43,10.37053065]
[1738018089619,10.37053065,235.62,235.44,7.01e-05]
[1738018089821,4.2492,235.4,235.33,4.04822651]
[1738018090021,13.21053065,235.52,235.26,11.76773065]
[1738018090222,0.02751739,235.39,235.34,0.0310909]
[1738018090429,4.248,235.46,235.38,4.2495]
[1738018090721,0.02701912,235.39,235.34,10.40173095]
[1738018091027,8.4907,235.61,235.38,10.37053065]
[1738018091028,4.247,235.52,235.38,10.37053065]
[1738018091328,14.77923065,235.6,235.39,2.8108]
[1738018091825,13.27883065,235.6,235.39,2.8108]
[1738018092023,1.4624,235.6,235.47,10.37053065]
[1738018092224,1.4624,235.6,235.47,10.39938527]
[1738018092424,1.5004,235.67,235.47,10.39938527]
[1738018092628,4.245,235.63,235.48,1.4071]
[1738018092931,4.245,235.63,235.54,0.02800217]
[1738018093324,4.2447,235.65,235.55,9.54887685]
[1738018093525,1.4624,235.72,235.55,9.54887685]
[1738018093827,1.4624,235.72,235.6,4.2455]
[1738018094028,14.61463065,235.68,235.6,4.2455]
[1738018094423,11.83293065,235.72,235.62,4.2451]
[1738018094624,11.83293065,235.72,235.56,9.54887685]
[1738018094931,11.83293065,235.72,235.65,0.03243196]
[1738018095126,1.4624,235.72,235.65,0.03243196]
[1738018095433,4.2431,235.74,235.65,0.03243196]
[1738018095630,4.2431,235.74,235.66,9.54887685]
[1738018095927,4.2432,235.73,235.66,9.54887685]
[1738018096227,10.37053065,235.77,235.67,9.54887685]
[1738018096431,4.2429,235.75,235.67,9.54887685]
[1738018096824,4.2429,235.75,235.68,9.54887685]
[1738018097929,4.243,235.74,235.69,9.54887685]
[1738018098433,4.243,235.74,235.7,9.54887685]
[1738018099425,4.243,235.74,235.71,9.54887685]
[1738018100033,4.2433,235.72,235.71,9.54887685]
[1738018102222,4.2433,235.72,235.71,3.67264494]
[1738018103833,4.2433,235.72,235.71,9.55312245]
[1738018107333,4.2433,235.72,235.71,13.57672558]
[1738018108031,2.821,235.78,235.71,13.57672558]
[1738018108233,2.821,235.78,235.72,4.02360313]
[1738018108433,2.821,235.78,235.73,4.02360313]
[1738018108636,4.2429,235.75,235.74,4.02360313]
[1738018109428,4.2429,235.75,235.74,13.57672558]
[1738018111228,4.2429,235.75,235.74,13.58771114]
[1738018112528,7.53991459,235.8,235.74,13.58771114]
[1738018112529,4.2422,235.79,235.74,13.58771114]
[1738018112733,7.53991459,235.8,235.75,4.03458869]
[1738018112929,7.53991459,235.8,235.76,4.03458869]
[1738018113129,4.2422,235.78,235.77,4.03458869]
[1738018113934,4.2422,235.78,235.77,13.58771114]
[1738018117441,4.2422,235.78,235.77,4.03458869]
[1738018117640,4.2422,235.78,235.77,7.65540359]
[1738018118240,4.2422,235.78,235.77,0.16030359]
[1738018118440,4.2428,235.75,235.74,0.02940611]
[1738018128547,10.88098994,235.75,235.74,0.02940611]
[1738018131849,10.88098994,235.75,235.74,3.61788687]
[1738018135351,10.88098994,235.75,235.74,7.64692925]
[1738018138150,10.88098994,235.75,235.74,7.65521853]
[1738018141555,10.88098994,235.75,235.74,3.61788687]
[1738018141757,10.88098994,235.75,235.74,7.65901286]
[1738018143861,10.88098994,235.75,235.74,7.66140419]
[1738018147858,10.88098994,235.75,235.74,7.6621518]
[1738018154163,10.88098994,235.75,235.74,7.6670976]
[1738018154766,4.2428,235.75,235.74,7.6670976]
[1738018155162,10.88078994,235.77,235.74,4.07783411]
[1738018155368,10.88078994,235.77,235.75,4.048428]
[1738018155574,10.88078994,235.77,235.76,4.048428]
[1738018156175,10.88078994,235.77,235.74,3.6501052]
[1738018156372,10.88078994,235.77,235.76,3.62069909]
[1738018156572,10.88078994,235.77,235.76,7.66989019]
[1738018156971,6.63818994,235.79,235.76,7.66989019]
[1738018157170,6.63818994,235.79,235.77,4.0491911]
[1738018157372,6.63818994,235.79,235.78,4.0491911]
[1738018157971,6.63818994,235.84,235.78,4.0491911]
[1738018158274,6.63818994,235.84,235.79,4.0491911]
[1738018158476,6.63818994,235.84,235.8,4.0491911]
[1738018158671,6.63818994,235.86,235.81,4.0491911]
[1738018158875,6.63818994,235.86,235.8,3.62069909]
[1738018158876,6.63818994,235.86,235.82,4.0491911]
[1738018159077,6.63818994,235.86,235.8,3.62069909]
[1738018159078,6.63818994,235.86,235.83,4.0491911]
[1738018159277,6.63818994,235.88,235.84,4.0491911]
[1738018159479,6.63818994,235.88,235.85,4.0491911]
[1738018159771,47.08097455,235.96,235.86,4.0491911]
[1738018159977,43.94507455,235.96,235.89,6.63818994]
[1738018160175,43.86467455,235.96,235.9,4.0491911]
[1738018160374,43.86467455,235.96,235.92,4.2397]
[1738018160681,43.86467455,235.96,235.93,7.66989019]
[1738018160877,42.11117455,235.96,235.94,4.0491911]
[1738018161182,42.11117455,235.96,235.95,4.0491911]
[1738018161382,42.11117455,235.96,235.95,7.66989019]
[1738018161983,6.63818994,236.03,235.95,7.66989019]
[1738018162283,6.63818994,236.03,235.96,4.0491911]
[1738018162583,6.63818994,236.03,235.97,7.70017411]
[1738018162881,6.63818994,236.0,235.98,7.66989019]
[1738018163075,6.63818994,236.0,235.98,3.62069909]
[1738018163881,6.63818994,236.0,235.97,0.03028392]
[1738018166886,4.2385,235.99,235.97,0.03028392]
[1738018167485,6.63818994,236.0,235.89,3.57088547]
[1738018167686,6.63818994,235.93,235.89,3.57088547]
[1738018167881,6.63818994,235.93,235.85,3.57088547]
[1738018168089,6.63818994,235.93,235.86,3.99528534]
[1738018168584,6.63818994,235.93,235.87,3.59855165]
[1738018168789,0.02716829,235.92,235.87,3.59855165]
[1738018168987,6.63818994,235.88,235.87,3.59855165]
[1738018169491,6.63818994,235.88,235.87,0.02766618]
[1738018172587,14.60084161,235.9,235.87,0.02766618]
[1738018174091,4.2403,235.89,235.87,0.02766618]
[1738018177694,10.36064161,235.9,235.87,0.02766618]
[1738018178586,0.02716829,235.92,235.87,0.02766618]
[1738018179393,0.02716829,235.92,235.89,4.2403]
[1738018179590,0.02716829,235.92,235.87,0.02766618]
[1738018179995,0.02716829,235.92,235.88,3.99427272]
[1738018180192,0.02716829,235.92,235.91,4.2399]
[1738018180498,10.1897999,236.0,235.91,3.56882911]
[1738018181298,10.1897999,236.0,235.92,3.56882911]
[1738018181497,10.1897999,236.0,235.93,0.03120378]
[1738018182498,4.2389,235.97,235.93,0.03120378]
[1738018182900,10.1897999,236.0,235.93,0.03120378]
[1738018183099,4.2387,235.98,235.93,0.03120378]
[1738018183601,4.2389,235.97,235.93,0.03120378]
[1738018184501,10.1897999,236.0,235.93,0.03120378]
[1738018184699,10.36064161,235.96,235.93,0.03120378]
[1738018185901,4.2394,235.94,235.93,0.03120378]
[1738018190494,4.2401,235.91,235.87,3.57294937]
[1738018190695,10.36064161,235.96,235.87,3.57294937]
[1738018191094,10.36064161,235.96,235.78,10.36064161]
[1738018191095,10.36064161,236.0,235.88,7.56887436]
[1738018191299,10.36064161,236.0,235.89,3.99592499]
[1738018191510,10.36064161,236.0,235.9,3.99592499]
[1738018191803,10.36064161,236.0,235.88,3.57294937]
[1738018191804,0.03201851,235.97,235.92,0.02717848]
[1738018192604,6.62513699,235.96,235.93,3.57382779]
[1738018193002,6.62513699,235.96,235.92,0.02717848]
[1738018193803,0.03201851,235.97,235.93,4.2394]
[1738018194099,0.03201851,235.97,235.92,0.02717848]
[1738018194299,0.03201851,235.97,235.94,3.57161436]
[1738018194905,0.03201851,235.97,235.95,3.57161436]
[1738018195099,6.62513699,236.04,235.95,3.57161436]
[1738018195300,0.15969,236.06,235.95,3.57161436]
[1738018195301,0.15969,236.06,236.02,6.62513699]
[1738018195499,6.62513699,236.16,236.05,10.86253699]
[1738018195701,46.71444834,236.17,236.11,6.62513699]
[1738018195906,46.71444834,236.17,236.14,6.62513699]
[1738018196203,46.28081096,236.17,236.15,8.23127225]
[1738018196399,46.28081096,236.17,236.16,3.99577225]
[1738018196807,46.28081096,236.17,236.16,7.56738661]
[1738018197407,46.28081096,236.17,236.16,3.57161436]
[1738018198107,46.28081096,236.17,236.13,0.03210842]
[1738018198407,4.2356,236.15,236.13,0.03210842]
[1738018199107,4.2359,236.14,236.0,10.33640788]
[1738018199309,10.33640788,236.14,236.09,3.55969388]
[1738018199905,4.2362,236.12,235.99,47.16931353]
[1738018200207,10.33640788,236.14,236.0,3.98486284]
[1738018200406,0.02779541,236.08,236.03,0.02954877]
[1738018200611,0.02779541,236.08,236.04,7.55150688]
[1738018200808,0.02779541,236.08,236.05,3.56664404]
[1738018201504,0.02779541,236.08,236.06,3.56664404]
[1738018201912,0.02779541,236.08,236.03,0.02954877]
[1738018202109,0.02779541,236.08,236.04,3.98854181]
[1738018202308,0.02779541,236.08,236.05,3.98854181]
[1738018202511,0.02779541,236.08,236.03,0.02954877]
[1738018202707,0.02779541,236.08,236.04,3.99241746]
[1738018202913,0.02779541,236.08,236.03,0.02954877]
[1738018203112,0.02779541,236.08,236.04,3.99212886]
[1738018203308,0.02779541,236.08,236.05,3.99212886]
[1738018203515,0.02779541,236.08,236.03,0.02954877]
[1738018203715,0.02779541,236.08,236.06,3.56984758]
[1738018204416,0.02779541,236.08,236.07,3.56984758]
[1738018205011,0.02779541,236.08,236.03,0.02954877]
[1738018205814,0.02779541,236.08,236.04,3.57217629]
[1738018206315,4.2373,236.06,236.05,3.57217629]
[1738018207914,0.02779541,236.08,236.05,3.57217629]
[1738018208114,0.02779541,236.08,236.03,0.02954877]
[1738018208616,4.2372,236.06,236.03,0.02954877]
[1738018208811,4.2372,236.06,236.04,3.57126269]
[1738018209414,4.2372,236.06,236.05,3.57126269]
[1738018211623,0.02779541,236.08,236.03,0.02954877]
[1738018211821,4.2376,236.04,236.03,0.02954877]
[1738018212521,4.2376,236.04,236.03,3.60027419]
[1738018212919,0.02779541,236.08,236.03,3.60027419]
[1738018213120,0.02779541,236.08,236.04,8.2289219]
[1738018213323,0.02779541,236.08,236.05,3.9915219]
[1738018213519,0.02779541,236.08,236.06,3.9915219]
[1738018213722,0.02779541,236.08,236.07,3.9915219]
[1738018214421,0.02779541,236.08,236.07,3.57072542]
[1738018214821,4.2372,236.06,236.03,0.02954877]
[1738018215124,0.02779541,236.08,236.04,3.99071545]
[1738018215323,0.02779541,236.08,236.05,3.99071545]
[1738018215522,0.02779541,236.08,236.05,3.56729541]
[1738018216323,0.02779541,236.08,236.06,7.55687974]
[1738018216523,0.02779541,236.08,236.06,3.56729541]
[1738018216724,0.02779541,236.08,236.07,7.55603156]
[1738018217423,0.02779541,236.08,236.07,7.55484275]
[1738018218021,0.02779541,236.08,236.07,3.56729541]
[1738018218923,0.02779541,236.08,236.07,7.55486698]
[1738018220227,0.02779541,236.08,236.07,11.79186698]
[1738018221918,0.02779541,236.08,236.07,7.80429541]
[1738018222123,0.02779541,236.08,236.07,11.79353409]
[1738018224926,0.02779541,236.08,236.07,11.79644943]
[1738018228642,9.541e-05,236.08,236.07,22.13285731]
[1738018231935,4.2348,236.2,236.16,4.2353]
[1738018232236,4.2348,236.2,236.17,3.99215402]
[1738018232541,4.2348,236.2,236.18,3.98938532]
[1738018232740,4.2348,236.2,236.16,4.2353]
[1738018232941,4.2348,236.2,236.17,3.98935616]
[1738018233137,4.2348,236.2,236.17,3.56729541]
[1738018233341,4.2348,236.2,236.18,3.9909412]
[1738018233541,4.2348,236.2,236.18,3.56729541]
[1738018234036,10.33640788,236.25,236.18,3.56729541]
[1738018234240,10.33640788,236.25,236.19,3.99224185]
[1738018234444,10.33640788,236.25,236.2,3.99179]
[1738018234645,4.234,236.24,236.19,3.56729541]
[1738018234843,4.234,236.24,236.2,3.56729541]
[1738018235341,4.234,236.24,236.21,3.56729541]
[1738018235942,4.234,236.24,236.18,4.235]
[1738018236143,4.234,236.24,236.19,3.99405817]
[1738018236344,4.234,236.24,236.2,3.99405817]
[1738018236647,4.234,236.24,236.21,3.9946949]
[1738018236845,4.234,236.24,236.2,3.5713926]
[1738018237138,4.234,236.24,236.16,0.03176002]
[1738018237139,4.2342,236.23,236.22,3.5713926]
[1738018237341,2.9916,236.26,235.95,9.2769741]
[1738018237538,4.2343,236.22,236.2,0.03019148]
[1738018237737,4.2343,236.22,236.15,4.2354]
[1738018237945,4.2343,236.22,236.19,0.03236983]
[1738018238245,6.61126856,236.2,236.19,0.03236983]
[1738018238440,6.61126856,236.2,236.19,4.03020857]
[1738018238845,6.61126856,236.2,236.19,7.60417096]
[1738018239047,10.84596856,236.2,236.19,3.57396239]
[1738018239246,6.61126856,236.2,236.14,4.2356]
[1738018239545,6.61126856,236.18,236.1,6.61126856]
[1738018240245,0.02858693,236.16,236.12,0.0295773]
[1738018241147,0.02858693,236.16,236.14,4.2356]
[1738018242741,0.02858693,236.16,236.12,4.2655773]
[1738018242944,0.02858693,236.16,236.12,0.0295773]
[1738018243640,0.02858693,236.16,236.14,4.2358]
[1738018247441,0.02858693,236.16,236.12,0.0295773]
[1738018247744,0.02858693,236.16,236.15,4.2356]
[1738018251652,0.02858693,236.16,236.15,7.76621303]
[1738018261355,6.47899549,236.22,236.16,4.2353]
[1738018261559,6.47899549,236.22,236.17,3.53061303]
[1738018262050,6.47899549,236.22,236.18,3.53061303]
[1738018262558,6.47899549,236.22,236.18,3.56291186]
[1738018262958,6.47899549,236.22,236.19,3.53061303]
[1738018263257,6.47899549,236.22,236.2,3.53061303]
[1738018264051,6.47899549,236.22,236.21,3.53061303]
[1738018274059,1.493,236.26,236.21,3.53061303]
[1738018274060,6.61126856,236.25,236.21,3.53061303]
[1738018274658,6.61126856,236.25,236.22,3.53061303]
[1738018275364,6.61126856,236.25,236.23,3.53061303]
[1738018276264,6.61126856,236.25,236.24,3.53061303]
[1738018287869,10.84506856,236.25,236.24,3.53061303]
[1738018288078,6.61126856,236.25,236.24,3.53061303]
[1738018291772,6.61126856,236.25,236.18,0.03229883]
[1738018292080,6.61126856,236.22,236.18,0.03229883]
[1738018301083,6.61126856,236.19,236.09,6.61126856]
[1738018301681,6.61126856,236.19,236.12,4.2361]
[1738018301987,6.61126856,236.19,236.09,6.61126856]
[1738018302187,0.02809018,236.18,236.13,0.02909841]
[1738018303087,6.61126856,236.16,236.13,0.02909841]
[1738018306292,6.61126856,236.14,236.13,0.02909841]
[1738018312399,6.61126856,236.14,236.07,4.237]
[1738018312699,6.61126856,236.11,236.06,4.2372]
[1738018313600,6.63854114,236.11,236.06,4.26428294]
[1738018315399,6.61126856,236.07,235.96,6.61126856]
[1738018315603,6.61126856,236.04,235.94,6.61126856]
[1738018315801,6.61126856,236.02,235.94,6.61126856]
[1738018316304,6.61126856,236.02,235.92,6.61126856]
[1738018316604,0.03160554,236.0,235.96,0.02897356]
[1738018316902,6.6428741,236.0,235.96,0.02897356]
[1738018317103,10.8812741,236.0,235.96,0.02897356]
[1738018317511,6.6428741,236.0,235.96,0.02897356]
[1738018317707,4.2385,235.99,235.96,0.02897356]
[1738018318909,6.61126856,235.98,235.96,0.02897356]
[1738018319713,10.84996856,235.98,235.96,0.02897356]
[1738018320313,6.6428741,236.0,235.96,0.02897356]
[1738018320610,0.03160554,236.0,235.96,0.02897356]
[1738018321711,0.03160554,236.0,235.96,4.26787356]
[1738018321911,0.03160554,236.0,235.96,6.64024212]
[1738018322310,0.03160554,236.0,235.98,6.61126856]
[1738018322716,0.03160554,236.0,235.98,4.2386]
[1738018323013,0.03160554,236.0,235.96,6.64024212]
[1738018323705,0.03160554,236.0,235.99,4.2385]
[1738018324616,6.61126856,236.08,236.03,4.2377]
[1738018324807,6.61126856,236.08,235.99,1.4984]
[1738018325811,0.02771138,236.06,236.02,4.2378]
[1738018326214,0.02771138,236.06,236.01,0.03141654]
[1738018326815,0.02771138,236.06,236.03,4.2377]
[1738018327316,0.02771138,236.06,236.01,0.03141654]
[1738018327720,6.63897994,236.06,236.01,0.03141654]
[1738018328312,6.61126856,236.04,236.01,0.03141654]
[1738018329021,10.84886856,236.04,236.01,0.03141654]
[1738018332424,10.84916856,236.02,236.01,0.03141654]
[1738018335322,4.2384,236.0,235.93,4.2394]
[1738018335624,6.61126856,235.96,235.89,6.61126856]
[1738018336626,0.03016322,235.95,235.9,0.03254969]
[1738018337121,0.03016322,235.95,235.94,4.2393]
[1738018337425,0.03016322,235.95,235.9,0.03254969]
[1738018337928,0.03016322,235.95,235.92,4.2396]
[1738018338422,6.61126856,235.94,235.91,4.2398]
[1738018338823,6.61126856,235.94,235.9,0.03254969]
[1738018339226,6.61126856,235.94,235.9,4.27264969]
[1738018341127,6.61126856,235.92,235.9,0.03254969]
[1738018342525,10.85096856,235.92,235.9,0.03254969]
[1738018343329,6.61126856,235.92,235.9,0.03254969]
[1738018343629,4.2399,235.91,235.9,0.03254969]
[1738018344628,10.85096856,235.92,235.9,0.03254969]
[1738018346234,6.61126856,235.92,235.9,0.03254969]
[1738018348330,6.61126856,235.92,235.79,6.61126856]
[1738018348540,6.61126856,235.86,235.83,4.2412]
[1738018348731,6.61126856,235.84,235.83,4.2412]
[1738018349834,6.61126856,235.84,235.82,4.2415]
[1738018351832,6.61126856,235.84,235.81,0.03005847]
[1738018352033,6.61126856,235.82,235.81,0.03005847]
[1738018352337,6.61126856,235.82,235.76,4.2424]
[1738018352338,6.61126856,235.82,235.75,4.2428]
[1738018352542,6.61126856,235.78,235.75,4.2428]
[1738018353238,6.61126856,235.78,235.69,6.61126856]
[1738018353538,0.02770354,235.76,235.71,0.02960763]
[1738018353838,0.02770354,235.76,235.73,4.243]
[1738018355737,6.6389721,235.76,235.73,4.243]
[1738018356137,6.61126856,235.74,235.71,0.02960763]
[1738018356842,6.61126856,235.72,235.71,4.27310763]
[1738018360639,6.61126856,235.72,235.71,0.02960763]
[1738018360843,10.85456856,235.72,235.71,0.02960763]
[1738018361643,6.61126856,235.72,235.71,0.02960763]
[1738018362942,6.61126856,235.72,235.71,4.27310763]
[1738018363143,6.61126856,235.72,235.71,0.02960763]
[1738018364041,6.61126856,235.72,235.58,6.61126856]
[1738018364237,6.61126856,235.72,235.54,4.3674]
[1738018364238,6.61126856,235.66,235.56,6.61126856]
[1738018364443,6.61126856,235.62,235.6,4.2453]
[1738018366742,6.61126856,235.62,235.59,0.02770608]
[1738018366942,6.61126856,235.62,235.61,4.2453]
[1738018367744,0.02984364,235.63,235.62,4.2451]
[1738018370851,6.61126856,235.7,235.69,4.2439]
[1738018373348,6.61126856,235.7,235.67,0.03166821]
[1738018373647,6.61126856,235.68,235.67,0.03166821]
[1738018374250,6.61126856,235.68,235.67,4.27586821]
[1738018374848,6.61126856,235.68,235.67,0.03166821]
[1738018379151,4.245,235.63,235.58,4.2458]
[1738018379353,6.61126856,235.61,235.51,6.61126856]
[1738018380247,0.03202676,235.58,235.54,0.03013433]
[1738018380657,0.03202676,235.58,235.57,4.246]
[1738018383662,0.03202676,235.58,235.54,0.03013433]
[1738018383861,6.61126856,235.57,235.54,4.27663433]
[1738018384261,6.61126856,235.57,235.54,0.03013433]
[1738018384462,4.2463,235.56,235.54,0.03013433]
[1738018386664,6.61126856,235.57,235.54,0.03013433]
[1738018387765,6.61126856,235.55,235.54,0.03013433]
[1738018395072,0.03202676,235.58,235.54,0.03013433]
[1738018395073,6.61126856,235.57,235.54,0.03013433]
[1738018395664,0.03202676,235.58,235.57,4.246]
[1738018408882,0.03202676,235.58,235.54,0.03013433]
[1738018409275,4.27802676,235.58,235.54,4.27653433]
[1738018409482,6.61126856,235.56,235.54,0.03013433]
[1738018409882,4.2464,235.55,235.54,0.03013433]
[1738018413285,6.61126856,235.56,235.54,0.03013433]
[1738018413475,10.85746856,235.56,235.54,0.03013433]
[1738018413877,4.2467,235.54,235.47,4.2477]
[1738018414077,6.61126856,235.52,235.42,5.33362219]
[1738018414586,6.61126856,235.52,235.48,4.2475]
[1738018415085,6.64257242,235.52,235.48,4.27793325]
[1738018416386,10.88947242,235.52,235.48,4.27793325]
[1738018417787,6.61126856,235.5,235.48,4.27793325]
[1738018418287,6.61126856,235.5,235.48,0.03043325]
[1738018418485,6.64257242,235.52,235.48,0.03043325]
[1738018418986,10.88957242,235.52,235.48,0.03043325]
[1738018419486,6.61126856,235.5,235.48,0.03043325]
[1738018420186,4.2475,235.49,235.48,0.03043325]
[1738018422788,6.61126856,235.5,235.48,0.03043325]
[1738018424083,10.85856856,235.5,235.48,0.03043325]
[1738018425490,4.2475,235.49,235.48,0.03043325]
[1738018430297,6.61126856,235.5,235.48,0.03043325]
[1738018432096,4.2475,235.49,235.48,0.03043325]
[1738018436198,6.61126856,235.5,235.31,6.61126856]
[1738018436399,6.61126856,235.33,235.23,13.25089518]
[1738018436602,6.61126856,235.3,235.23,13.25089518]
[1738018436797,6.61126856,235.3,235.23,1.4055]
[1738018437004,6.61126856,235.3,235.25,4.2518]
[1738018437203,6.61126856,235.28,235.24,176.66941604]
[1738018437404,6.61126856,235.28,235.25,0.03271576]
[1738018441008,6.61126856,235.28,235.25,4.28451576]
[1738018444207,10.89176529,235.3,235.26,4.2515]
[1738018444603,0.02959673,235.3,235.25,0.03271576]
[1738018445407,0.02959673,235.3,235.28,4.2511]
[1738018445808,0.02959673,235.3,235.25,0.03271576]
[1738018446611,0.02959673,235.3,235.29,4.2511]